bitfinex/quotes_SOLUSD_20220129
["timestamp","ask_amount","ask_price","bid_price","bid_amount"]
[1643423185626,0.25,91.628,91.536,0.25]
[1643423185826,2.95669142,91.627,91.536,0.25]
[1643423186227,0.25,91.626,91.536,0.25]
[1643423186430,0.25,91.626,91.526,0.25]
[1643423186626,2.95669142,91.625,91.526,0.25]
[1643423186826,15.77,91.62,91.526,0.25]
[1643423187027,15.77,91.62,91.535,6.0]
[1643423187327,0.25,91.619,91.536,0.25]
[1643423188930,0.25,91.619,91.536,6.25]
[1643423190430,0.25,91.619,91.536,0.25]
[1643423191232,15.77,91.62,91.536,0.25]
[1643423192331,23.025,91.639,91.536,0.25]
[1643423192536,15.77,91.64,91.536,0.25]
[1643423192832,16.1673,91.683,91.537,2.88645602]
[1643423193031,47.9004,91.684,91.537,2.88645602]
[1643423193032,15.77,91.68,91.57,16.377]
[1643423193331,15.77,91.68,91.571,226.75935602]
[1643423193530,15.77,91.68,91.581,6.0]
[1643423193731,45.77823056,91.679,91.582,108.5]
[1643423193934,46.02823056,91.679,91.582,108.75]
[1643423194132,46.02823056,91.679,91.593,108.5]
[1643423194332,46.02823056,91.679,91.592,6.0]
[1643423194333,46.02823056,91.679,91.594,0.25]
[1643423194533,2.95669142,91.678,91.581,6.0]
[1643423194734,0.25,91.677,91.581,6.0]
[1643423194933,0.25,91.677,91.582,0.25]
[1643423195140,2.95669142,91.676,91.582,0.25]
[1643423195339,0.25,91.675,91.582,0.25]
[1643423195736,2.95669142,91.674,91.582,0.25]
[1643423196136,1.48867009,91.672,91.582,0.25]
[1643423196339,0.25,91.671,91.582,0.25]
[1643423197038,1.73867009,91.671,91.582,0.25]
[1643423197238,0.25,91.671,91.582,0.25]
[1643423197438,15.77,91.67,91.582,0.25]
[1643423197938,0.25,91.669,91.582,0.25]
[1643423199042,1.48867009,91.663,91.582,23.891]
[1643423199239,1.48867009,91.662,91.582,23.891]
[1643423199440,1.48867009,91.662,91.592,6.0]
[1643423199640,0.25,91.661,91.592,6.0]
[1643423199840,0.25,91.661,91.593,0.25]
[1643423201643,1.48867009,91.669,91.593,0.25]
[1643423201842,1.48867009,91.678,91.593,108.75]
[1643423202044,45.77823056,91.679,91.603,6.0]
[1643423202270,47.26690065,91.679,91.604,108.75]
[1643423202671,45.77823056,91.679,91.614,6.0]
[1643423202972,1.48867009,91.686,91.615,108.75]
[1643423203173,1.48867009,91.695,91.616,23.7016]
[1643423203371,15.77,91.72,91.616,23.7016]
[1643423203372,1.48867009,91.705,91.626,108.5]
[1643423203573,1.48867009,91.707,91.626,114.5]
[1643423203773,1.48867009,91.708,91.627,0.25]
[1643423203972,34.86244735,91.707,91.627,22.9576]
[1643423204175,34.86244735,91.707,91.628,108.5]
[1643423204373,33.37377726,91.707,91.637,6.0]
[1643423204573,33.37377726,91.707,91.638,114.5]
[1643423204772,33.37377726,91.707,91.639,0.25]
[1643423204773,34.86244735,91.707,91.639,0.25]
[1643423205173,33.37377726,91.707,91.639,0.25]
[1643423205373,33.37377726,91.707,91.64,114.5]
[1643423205873,33.37377726,91.707,91.641,0.25]
[1643423217587,0.25,91.706,91.627,22.7076]
[1643423218190,1.48867009,91.705,91.627,22.7076]
[1643423218490,1.73867009,91.704,91.627,22.7076]
[1643423218789,0.25,91.703,91.628,0.25]
[1643423218990,1.73867009,91.703,91.628,0.25]
[1643423219390,1.48867009,91.702,91.628,0.25]
[1643423219592,1.48867009,91.701,91.628,0.25]
[1643423219990,0.25,91.7,91.628,0.25]
[1643423220191,1.48867009,91.699,91.628,0.25]
[1643423220392,0.25,91.698,91.628,0.25]
[1643423220591,1.48867009,91.693,91.628,0.25]
[1643423220791,0.25,91.692,91.628,0.25]
[1643423221097,1.73867009,91.692,91.628,0.25]
[1643423222694,1.48867009,91.691,91.628,0.25]
[1643423222898,0.25,91.692,91.628,0.25]
[1643423222899,1.48867009,91.688,91.628,0.25]
[1643423223096,1.48867009,91.687,91.628,0.25]
[1643423223396,1.73867009,91.686,91.628,0.25]
[1643423223596,1.48867009,91.685,91.628,0.25]
[1643423223794,0.25,91.684,91.628,0.25]
[1643423225198,1.48867009,91.685,91.628,0.25]
[1643423225495,1.48867009,91.686,91.616,6.0]
[1643423225695,0.25,91.684,91.616,6.0]
[1643423225896,1.73867009,91.684,91.617,0.25]
[1643423226096,1.48867009,91.68,91.617,0.25]
[1643423226300,42.06929999,91.679,91.617,0.25]
[1643423226998,1.48867009,91.675,91.608,0.25]
[1643423227200,15.77,91.66,91.608,0.25]
[1643423227399,0.25,91.659,91.589,6.0]
[1643423227599,0.25,91.659,91.59,6.0]
[1643423227800,0.25,91.659,91.59,6.25]
[1643423229527,0.25,91.659,91.591,6.0]
[1643423229729,0.25,91.659,91.6,6.0]
[1643423229926,0.25,91.659,91.592,25.0105]
[1643423230226,0.25,91.659,91.602,6.0]
[1643423230426,0.25,91.659,91.603,0.25]
[1643423231832,0.25,91.659,91.593,0.25]
[1643423232230,1.73867009,91.659,91.593,0.25]
[1643423232527,0.25,91.659,91.593,0.25]
[1643423233529,0.25,91.659,91.602,6.0]
[1643423233930,0.25,91.659,91.603,0.25]
[1643423243340,0.25,91.66,91.603,0.25]
[1643423243541,16.02,91.66,91.603,0.25]
[1643423244140,1.48867009,91.658,91.603,0.25]
[1643423244343,0.25,91.657,91.603,0.25]
[1643423244542,1.73867009,91.657,91.603,0.25]
[1643423245140,0.25,91.657,91.603,0.25]
[1643423245542,1.48867009,91.658,91.603,0.25]
[1643423245940,15.77,91.66,91.603,0.25]
[1643423246746,1.48867009,91.659,91.603,0.25]
[1643423247144,0.25,91.658,91.593,0.25]
[1643423247353,1.48867009,91.652,91.593,0.25]
[1643423247546,44.87929247,91.651,91.593,0.25]
[1643423247743,45.12929247,91.651,91.593,0.25]
[1643423248045,44.87929247,91.651,91.593,0.25]
[1643423248246,0.25,91.65,91.593,0.25]
[1643423250447,46.36796256,91.651,91.593,0.25]
[1643423250651,0.25,91.65,91.593,0.25]
[1643423250848,1.73867009,91.65,91.593,0.25]
[1643423251054,1.48867009,91.648,91.593,0.25]
[1643423251251,1.73867009,91.647,91.593,0.25]
[1643423251552,1.48867009,91.646,91.593,0.25]
[1643423251952,1.73867009,91.645,91.593,0.25]
[1643423253152,1.48867009,91.643,91.593,0.25]
[1643423253353,0.25,91.642,91.593,0.25]
[1643423253753,1.73867009,91.642,91.593,0.25]
[1643423254355,0.25,91.642,91.593,0.25]
[1643423254555,1.48867009,91.643,91.593,0.25]
[1643423254771,1.48867009,91.65,91.602,6.0]
[1643423254974,1.48867009,91.657,91.602,6.0]
[1643423255175,1.48867009,91.657,91.603,0.25]
[1643423255572,41.48534385,91.656,91.603,24.6913]
[1643423255773,1.48867009,91.655,91.603,24.6913]
[1643423255972,1.48867009,91.655,91.613,6.0]
[1643423256174,1.48867009,91.652,91.613,6.0]
[1643423256373,1.48867009,91.65,91.614,0.25]
[1643423258376,1.48867009,91.653,91.614,0.25]
[1643423258577,1.48867009,91.654,91.614,0.25]
[1643423258776,1.48867009,91.655,91.604,0.25]
[1643423259176,1.48867009,91.653,91.604,0.25]
[1643423259579,1.48867009,91.652,91.604,0.25]
[1643423259777,1.48867009,91.653,91.604,0.25]
[1643423260381,1.48867009,91.652,91.604,0.25]
[1643423260777,1.48867009,91.652,91.604,108.75]
[1643423260978,0.1,91.867,91.604,108.75]
[1643423260979,1.48867009,91.665,91.604,108.75]
[1643423261179,1.50982286,91.67,91.614,6.0]
[1643423261380,2.92125122,91.736,91.621,65.23]
[1643423261580,2.92125122,91.736,91.632,65.23]
[1643423261780,2.92125122,91.736,91.634,65.23]
[1643423261980,34.41868608,91.738,91.634,65.23]
[1643423262182,34.41868608,91.738,91.645,108.5]
[1643423262384,34.41868608,91.738,91.646,23.9164]
[1643423262586,34.41868608,91.738,91.656,6.0]
[1643423262888,34.41868608,91.738,91.657,108.75]
[1643423263087,34.41868608,91.738,91.66,16.361]
[1643423263286,34.41868608,91.738,91.661,108.75]
[1643423263485,34.41868608,91.738,91.671,108.5]
[1643423263686,34.41868608,91.738,91.671,114.5]
[1643423263887,34.41868608,91.738,91.672,0.25]
[1643423264187,34.41868608,91.738,91.673,108.5]
[1643423264387,34.41868608,91.738,91.674,0.25]
[1643423264587,34.41868608,91.738,91.683,6.0]
[1643423264788,34.41868608,91.738,91.684,0.25]
[1643423265992,34.41868608,91.738,91.663,24.2617]
[1643423266889,34.41868608,91.738,91.673,6.0]
[1643423267291,34.41868608,91.738,91.674,0.25]
[1643423267492,0.25,91.737,91.663,24.2617]
[1643423267690,34.41868608,91.738,91.663,24.2617]
[1643423268890,34.41868608,91.738,91.673,6.0]
[1643423269091,34.41868608,91.738,91.674,6.0]
[1643423269290,34.41868608,91.738,91.674,6.25]
[1643423269491,34.41868608,91.738,91.679,6.0]
[1643423269891,34.41868608,91.738,91.684,6.0]
[1643423270091,34.41868608,91.738,91.68,0.25]
[1643423271797,34.41868608,91.738,91.674,6.0]
[1643423271798,34.41868608,91.738,91.675,0.25]
[1643423277906,34.41868608,91.738,91.577,101.48783987]
[1643423278110,15.77,91.73,91.631,23.3304]
[1643423278315,0.25,91.729,91.583,23.1015]
[1643423278509,0.25,91.729,91.584,45.9286]
[1643423278510,3.20669142,91.729,91.584,45.9286]
[1643423278708,197.08,91.72,91.584,45.9286]
[1643423278907,15.77,91.71,91.584,45.9286]
[1643423279109,36.90185237,91.709,91.584,45.9286]
[1643423279306,16.376,91.69,91.585,0.25]
[1643423279506,32.146,91.69,91.585,0.25]
[1643423279707,0.25,91.689,91.584,45.9286]
[1643423279907,3.20669142,91.689,91.584,45.9286]
[1643423280108,17.10708723,91.689,91.584,45.9286]
[1643423280311,2.95669142,91.688,91.568,22.907]
[1643423280509,31.72809611,91.688,91.578,6.0]
[1643423280712,11.81951117,91.687,91.578,6.0]
[1643423280910,14.77620259,91.687,91.578,6.0]
[1643423281118,16.378,91.68,91.578,6.0]
[1643423281315,42.32490739,91.669,91.578,6.0]
[1643423281719,0.25,91.668,91.578,6.0]
[1643423281919,0.25,91.668,91.579,0.25]
[1643423283224,16.381,91.66,91.579,0.25]
[1643423283420,15.77,91.65,91.579,0.25]
[1643423283820,0.25,91.649,91.579,0.25]
[1643423285322,0.25,91.649,91.515,22.5496]
[1643423286323,14.15039581,91.649,91.529,108.5]
[1643423286724,14.15039581,91.649,91.553,0.25]
[1643423287125,36.56078017,91.639,91.553,0.25]
[1643423287325,15.77,91.63,91.553,0.25]
[1643423287724,0.25,91.629,91.553,0.25]
[1643423289840,0.25,91.629,91.52,47.4792]
[1643423291046,16.388,91.62,91.52,47.4792]
[1643423291244,32.158,91.62,91.53,6.0]
[1643423291444,0.25,91.619,91.53,6.0]
[1643423291645,0.25,91.619,91.531,0.25]
[1643423296751,16.391,91.61,91.531,0.25]
[1643423296951,38.81823774,91.609,91.531,0.25]
[1643423299954,16.392,91.6,91.531,0.25]
[1643423300157,32.162,91.6,91.521,0.25]
[1643423300957,32.162,91.6,91.516,0.25]
[1643423301162,32.162,91.6,91.514,6.0]
[1643423301358,32.162,91.6,91.515,0.25]
[1643423301759,0.25,91.599,91.515,0.25]
[1643423302562,0.25,91.599,91.514,24.8827]
[1643423302759,0.25,91.599,91.503,24.8908]
[1643423302760,16.394,91.59,91.503,24.8908]
[1643423302960,34.31121234,91.579,91.503,24.8908]
[1643423303160,15.77,91.57,91.503,24.8908]
[1643423304159,15.77,91.57,91.504,0.25]
[1643423306762,15.77,91.57,91.483,0.25]
[1643423308262,32.168,91.57,91.483,0.25]
[1643423308663,0.25,91.569,91.483,0.25]
[1643423310064,16.4,91.55,91.483,0.25]
[1643423310264,43.06623325,91.549,91.483,0.25]
[1643423313071,43.06623325,91.549,91.492,6.0]
[1643423313271,43.06623325,91.549,91.493,0.25]
[1643423314472,43.06623325,91.549,91.482,23.5413]
[1643423314473,43.06623325,91.549,91.483,0.25]
[1643423321300,2.95669142,91.548,91.483,0.25]
[1643423329807,0.25,91.547,91.483,0.25]
[1643423332210,16.402,91.54,91.472,0.25]
[1643423332408,15.77,91.53,91.472,0.25]
[1643423333409,0.25,91.529,91.472,0.25]
[1643423337211,0.25,91.529,91.455,3.18006859]
[1643423337415,0.25,91.529,91.456,3.01928888]
[1643423337612,0.25,91.529,91.456,5.94935747]
[1643423337812,0.25,91.529,91.457,0.25]
[1643423338012,0.25,91.529,91.458,3.01928888]
[1643423338413,0.25,91.529,91.459,0.25]
[1643423338815,0.25,91.529,91.46,3.01928888]
[1643423339218,0.25,91.529,91.461,0.25]
[1643423339520,0.25,91.529,91.462,3.01928888]
[1643423339921,0.25,91.529,91.463,0.25]
[1643423340119,0.25,91.529,91.454,26.72306859]
[1643423340120,0.25,91.529,91.454,23.793]
[1643423340325,16.406,91.52,91.454,23.793]
[1643423340526,15.77,91.51,91.454,23.793]
[1643423340920,0.25,91.509,91.433,2.93006859]
[1643423341133,0.25,91.509,91.441,3.01057779]
[1643423341524,0.25,91.509,91.442,0.25]
[1643423341920,0.25,91.509,91.44,0.25]
[1643423342923,16.41,91.5,91.44,0.25]
[1643423343122,38.93795739,91.489,91.44,0.25]
[1643423344923,0.25,91.488,91.419,2.93006859]
[1643423345324,0.25,91.488,91.395,4.53310946]
[1643423345325,197.08,91.48,91.414,2.93006859]
[1643423345524,15.77,91.47,91.381,2.93006859]
[1643423345823,15.77,91.47,91.378,23.2645]
[1643423345824,0.25,91.469,91.378,23.2645]
[1643423346429,13.90039581,91.468,91.379,23.5021]
[1643423346927,0.25,91.467,91.379,23.5021]
[1643423347126,45.70721492,91.449,91.379,23.5021]
[1643423347326,15.77,91.44,91.358,2.93006859]
[1643423347526,15.77,91.44,91.352,24.92]
[1643423347828,0.25,91.439,91.353,3.00434273]
[1643423348426,0.25,91.439,91.353,111.50434273]
[1643423348631,0.25,91.439,91.354,3.00434273]
[1643423349027,0.25,91.439,91.353,108.5]
[1643423349226,0.25,91.439,91.354,0.25]
[1643423350128,16.423,91.43,91.336,23.2967]
[1643423350435,15.77,91.42,91.336,23.2967]
[1643423350631,15.77,91.41,91.346,6.0]
[1643423350830,15.77,91.4,91.346,6.0]
[1643423351329,0.25,91.399,91.346,6.0]
[1643423351530,12.78,91.399,91.346,6.0]
[1643423351729,12.78,91.399,91.336,23.2967]
[1643423351930,12.78,91.399,91.309,25.55180945]
[1643423352131,23.0022,91.398,91.294,2.93006859]
[1643423352330,23.0022,91.398,91.308,6.0]
[1643423352331,0.25,91.397,91.308,6.0]
[1643423352933,37.65735854,91.389,91.309,23.2632]
[1643423353132,15.77,91.38,91.309,23.2632]
[1643423353332,0.25,91.379,91.309,23.2632]
[1643423354332,0.25,91.379,91.31,0.25]
[1643423354733,0.25,91.379,91.282,24.1258]
[1643423354933,18.65809611,91.378,91.283,24.0477]
[1643423355332,17.10708723,91.377,91.283,24.0477]
[1643423355538,197.08,91.37,91.283,24.0477]
[1643423355737,38.41950302,91.359,91.283,24.0477]
[1643423356161,0.25,91.358,91.284,0.25]
[1643423357161,16.437,91.35,91.283,23.84098106]
[1643423357461,15.77,91.34,91.22,16.438]
[1643423357662,15.77,91.34,91.257,6.0]
[1643423357862,0.25,91.339,91.257,6.0]
[1643423358166,0.25,91.339,91.259,108.5]
[1643423358362,0.25,91.339,91.26,23.2567]
[1643423358563,0.25,91.339,91.27,6.0]
[1643423359265,0.25,91.339,91.271,0.25]
[1643423359861,0.25,91.339,91.261,0.25]
[1643423360062,0.25,91.339,91.26,23.2567]
[1643423360867,16.441,91.33,91.26,23.2567]
[1643423361068,15.77,91.32,91.26,23.2567]
[1643423361271,0.25,91.319,91.261,0.25]
[1643423361868,12.13,91.319,91.261,0.25]
[1643423363871,15.77,91.32,91.261,0.25]
[1643423365076,15.77,91.32,91.27,6.0]
[1643423365276,15.77,91.32,91.271,0.25]
[1643423366077,15.77,91.34,91.271,17.59]
[1643423366677,23.2236,91.397,91.271,17.59]
[1643423366977,15.77,91.37,91.28,16.429]
[1643423367177,15.77,91.37,91.281,23.1264]
[1643423367379,16.446,91.389,91.29,6.0]
[1643423367579,16.446,91.389,91.291,6.0]
[1643423367783,0.25,91.388,91.292,0.25]
[1643423367985,33.74212083,91.388,91.292,0.25]
[1643423368183,33.74212083,91.388,91.292,23.5988]
[1643423368382,33.74212083,91.388,91.292,29.5988]
[1643423368580,16.431,91.38,91.292,29.5988]
[1643423368782,32.201,91.38,91.292,29.5988]
[1643423369384,15.77,91.38,91.292,29.5988]
[1643423369985,15.77,91.38,91.3,6.0]
[1643423370483,15.77,91.38,91.302,6.0]
[1643423370883,15.77,91.38,91.303,114.75]
[1643423371084,15.77,91.38,91.303,6.25]
[1643423371487,15.77,91.38,91.303,0.25]
[1643423371686,15.77,91.38,91.313,6.0]
[1643423371886,15.77,91.38,91.314,0.25]
[1643423373086,15.77,91.38,91.303,0.25]
[1643423373487,15.77,91.38,91.303,6.25]
[1643423373685,15.77,91.38,91.303,29.3137]
[1643423374286,3.20669142,91.379,91.303,23.3137]
[1643423374486,3.20669142,91.379,91.303,0.25]
[1643423374687,26.20719142,91.378,91.303,0.25]
[1643423374886,197.08,91.37,91.291,6.0]
[1643423375088,40.42117295,91.359,91.291,6.0]
[1643423375290,0.25,91.358,91.292,0.25]
[1643423375691,3.20669142,91.358,91.292,0.25]
[1643423375891,2.95669142,91.357,91.292,0.25]
[1643423376094,16.438,91.34,91.292,0.25]
[1643423376292,32.89071974,91.329,91.269,0.25]
[1643423376989,32.89071974,91.329,91.278,6.0]
[1643423377391,32.89071974,91.329,91.279,0.25]
[1643423378992,32.89071974,91.329,91.269,0.25]
[1643423379793,32.89071974,91.329,91.269,108.75]
[1643423380192,32.89071974,91.329,91.279,6.0]
[1643423380395,32.89071974,91.329,91.28,0.25]
[1643423381595,32.89071974,91.329,91.295,1.49976482]
[1643423381795,32.89071974,91.329,91.296,1.74976482]
[1643423381994,32.89071974,91.329,91.297,1.49976482]
[1643423382400,32.89071974,91.329,91.298,0.25]
[1643423383294,32.89071974,91.329,91.293,1.49976482]
[1643423383295,32.89071974,91.329,91.294,0.25]
[1643423383896,32.89071974,91.329,91.295,1.49976482]
[1643423384295,32.89071974,91.329,91.3,1.49976482]
[1643423384497,32.89071974,91.329,91.301,1.49976482]
[1643423384898,32.89071974,91.329,91.302,0.25]
[1643423385298,32.89071974,91.329,91.302,1.74976482]
[1643423387601,32.89071974,91.329,91.303,1.49976482]
[1643423387800,32.89071974,91.329,91.304,0.25]
[1643423389202,32.89071974,91.329,91.299,1.49976482]
[1643423389401,32.89071974,91.329,91.301,0.25]
[1643423389823,15.77,91.32,91.301,0.25]
[1643423390426,15.77,91.32,91.298,1.49976482]
[1643423390624,15.77,91.32,91.299,1.74976482]
[1643423390825,15.77,91.32,91.3,0.25]
[1643423392227,15.77,91.32,91.3,1.74976482]
[1643423392425,15.77,91.32,91.3,1.49976482]
[1643423392626,15.77,91.32,91.301,0.25]
[1643423393526,15.77,91.32,91.301,1.74976482]
[1643423393725,15.77,91.32,91.301,1.49976482]
[1643423393929,15.77,91.32,91.302,0.25]
[1643423394526,15.77,91.32,91.302,1.74976482]
[1643423394926,15.77,91.32,91.303,1.49976482]
[1643423395431,15.77,91.32,91.304,0.25]
[1643423395631,15.77,91.35,91.304,0.25]
[1643423395828,23.4145,91.355,91.304,0.25]
[1643423396028,15.77,91.35,91.308,1.49976482]
[1643423396227,15.77,91.35,91.304,0.25]
[1643423396228,15.77,91.35,91.31,1.49976482]
[1643423396431,15.77,91.35,91.308,1.49976482]
[1643423396630,36.35452412,91.349,91.309,1.49976482]
[1643423397026,36.35452412,91.349,91.311,1.49976482]
[1643423397228,36.35452412,91.349,91.271,3.00435065]
[1643423397229,36.35452412,91.349,91.309,1.49976482]
[1643423397427,36.35452412,91.349,91.31,1.49976482]
[1643423397830,36.35452412,91.349,91.311,0.25]
[1643423398833,36.35452412,91.349,91.312,1.49976482]
[1643423399035,36.35452412,91.349,91.323,1.49976482]
[1643423399334,36.35452412,91.349,91.324,0.25]
[1643423399735,36.35452412,91.349,91.326,1.49976482]
[1643423400234,36.35452412,91.349,91.327,0.25]
[1643423400434,22.861,91.389,91.326,1.49976482]
[1643423400637,22.861,91.389,91.33,1.49976482]
[1643423400835,0.25,91.388,91.333,1.49976482]
[1643423401236,0.25,91.388,91.334,0.25]
[1643423401435,39.58374704,91.388,91.334,0.25]
[1643423402237,39.58374704,91.388,91.333,1.74976482]
[1643423402839,39.58374704,91.388,91.333,0.25]
[1643423403238,39.58374704,91.388,91.331,1.49976482]
[1643423403438,39.58374704,91.388,91.331,1.74976482]
[1643423403640,39.58374704,91.388,91.312,0.25]
[1643423403641,39.58374704,91.388,91.332,1.49976482]
[1643423403839,39.58374704,91.388,91.333,0.25]
[1643423404042,16.425,91.41,91.341,6.0]
[1643423404244,15.77,91.43,91.341,6.0]
[1643423404441,15.77,91.43,91.344,1.49976482]
[1643423404642,15.77,91.43,91.354,6.0]
[1643423404845,15.77,91.43,91.355,0.25]
[1643423405044,38.48169725,91.429,91.359,6.0]
[1643423405446,38.48169725,91.429,91.361,6.0]
[1643423405647,38.48169725,91.429,91.36,0.25]
[1643423406046,0.25,91.428,91.36,0.25]
[1643423406447,38.48169725,91.429,91.355,6.0]
[1643423406648,38.48169725,91.429,91.356,6.0]
[1643423406850,38.48169725,91.429,91.357,22.7595]
[1643423407249,38.48169725,91.429,91.358,0.25]
[1643423408052,38.48169725,91.429,91.358,3.1358789]
[1643423408451,38.48169725,91.429,91.358,111.6358789]
[1643423408850,38.48169725,91.429,91.368,6.0]
[1643423409054,16.418,91.45,91.368,6.0]
[1643423409251,1.51784807,91.478,91.369,135.70009711]
[1643423409454,45.4578,91.499,91.373,1.49976482]
[1643423409654,45.4578,91.499,91.379,6.0]
[1643423409854,45.4578,91.499,91.383,6.0]
[1643423410055,43.91129738,91.498,91.388,6.0]
[1643423410256,43.91129738,91.498,91.391,108.5]
[1643423410455,0.25,91.497,91.394,6.0]
[1643423410655,0.25,91.497,91.402,108.5]
[1643423410855,0.25,91.497,91.403,49.5639]
[1643423411056,0.25,91.497,91.413,6.0]
[1643423411256,0.25,91.497,91.414,24.613]
[1643423411655,0.25,91.497,91.424,5.5]
[1643423411855,0.25,91.497,91.425,0.25]
[1643423412058,0.25,91.497,91.415,2.88569711]
[1643423412258,0.25,91.497,91.416,0.25]
[1643423412956,16.411,91.49,91.416,0.25]
[1643423413156,32.181,91.49,91.416,0.25]
[1643423413357,32.181,91.49,91.414,6.0]
[1643423413558,32.181,91.49,91.415,0.25]
[1643423413855,0.25,91.489,91.415,0.25]
[1643423414056,32.181,91.49,91.415,6.25]
[1643423414258,0.25,91.489,91.415,6.25]
[1643423414456,16.413,91.48,91.415,6.25]
[1643423414659,16.413,91.48,91.415,0.25]
[1643423414858,16.413,91.48,91.403,24.9509]
[1643423414859,0.25,91.479,91.404,0.25]
[1643423415259,16.413,91.48,91.404,0.25]
[1643423415459,15.77,91.49,91.404,0.25]
[1643423415859,3.20669142,91.489,91.381,23.684]
[1643423416077,3.20669142,91.489,91.391,6.0]
[1643423416275,15.77,91.48,91.391,6.0]
[1643423416676,3.20669142,91.479,91.391,6.0]
[1643423416976,38.70894413,91.459,91.391,6.0]
[1643423417178,38.70894413,91.459,91.392,0.25]
[1643423417376,0.25,91.458,91.392,0.25]
[1643423417579,38.70894413,91.459,91.392,0.25]
[1643423417778,38.70894413,91.459,91.393,2.88569711]
[1643423418179,38.70894413,91.459,91.394,0.25]
[1643423418780,0.25,91.458,91.394,0.25]
[1643423418978,3.20669142,91.458,91.394,0.25]
[1643423419178,2.95669142,91.457,91.394,0.25]
[1643423419381,0.25,91.456,91.373,0.25]
[1643423419582,16.418,91.45,91.373,0.25]
[1643423419782,16.418,91.45,91.359,24.8176]
[1643423419783,2.95669142,91.455,91.363,0.25]
[1643423419981,38.70894413,91.459,91.372,6.0]
[1643423420182,38.70894413,91.459,91.374,2.88569711]
[1643423420384,38.70894413,91.459,91.375,0.25]
[1643423420581,38.70894413,91.459,91.384,6.0]
[1643423420781,38.70894413,91.459,91.385,22.765]
[1643423420982,38.70894413,91.459,91.386,108.5]
[1643423421181,38.70894413,91.459,91.396,108.5]
[1643423421382,38.70894413,91.459,91.397,0.25]
[1643423421582,38.70894413,91.459,91.406,6.0]
[1643423421781,38.70894413,91.459,91.407,0.25]
[1643423422182,38.70894413,91.459,91.408,6.0]
[1643423422383,38.70894413,91.459,91.409,0.25]
[1643423422584,38.70894413,91.459,91.409,3.13569711]
[1643423422783,38.70894413,91.459,91.409,0.25]
[1643423422983,15.77,91.5,91.41,2.88569711]
[1643423423282,15.77,91.5,91.411,24.6485]
[1643423423483,32.179,91.5,91.42,6.0]
[1643423423685,32.179,91.5,91.421,6.0]
[1643423423884,46.34307665,91.499,91.422,0.25]
[1643423424083,46.34307665,91.499,91.422,6.25]
[1643423424890,0.25,91.498,91.422,0.25]
[1643423425289,16.411,91.49,91.413,0.25]
[1643423425789,0.25,91.489,91.413,0.25]
[1643423426090,26.05169142,91.489,91.413,0.25]
[1643423426290,2.95669142,91.488,91.393,0.25]
[1643423426690,0.25,91.487,91.393,0.25]
[1643423427089,16.414,91.48,91.393,0.25]
[1643423427290,0.25,91.479,91.393,0.25]